{"text_format":"1","workbook":"xlsx","n_sheets":2,"sheets":["Sayfa2","Sayfa1"],"not_rendered":{"charts":0,"images":4,"macros":1,"external_links":0,"defined_names":1,"comments":0,"pivot_tables":0},"unopened":[],"bounds":{"document_bytes":16777216,"sheet_cells":100000,"rows_first":2000,"rows_last":500,"rows_between":2000,"halvings":0,"cell_chars":16384,"cell_head_chars":4096},"cells_cut":0,"cells_raw":0,"read":"whole","date_system":"1900"}

{"sheet":"Sayfa2","index":0,"n_rows":306,"n_cols":4,"rows_kept":306,"cut":false,"hidden":false,"merged":[]}
["GÜNLER","AYLAR","YILLAR","E-Ö YILI"]
[1,1,2006,"2018-2019"]
[2,2,2007,"2019-2020"]
[3,3,2008,"2020-2021"]
[4,4,2009,"2021-2022"]
[5,5,2010,"2022-2023"]
[6,6,2011,"2023-2024"]
[7,7,2012,"2024-2025"]
[8,8,2013,"2025-2026"]
[9,9,2014,"2026-2027"]
[10,10,2015,"2027-2028"]
[11,11,2016,"2028-2029"]
[12,12,2017,"2029-2030"]
[13,null,2018]
[14,null,2019]
[15,null,2020]
[16,null,2021]
[17,null,2022]
[18,null,2023]
[19,null,2024]
[20,null,2025]
[21]
[22]
[23]
[24]
[25]
[26]
[27]
[28]
[29]
[30]
[31]
[]
["AY","AÇIKLAMA"]
[1,{"$f":"CONCATENATE(\"Çocuğunuz \",A35,\" aylık olduğundan Anasınıfı, Anaokulu, Uygulama Sınıfına kayıt yaşı uygun değildir.\")","v":"Çocuğunuz 1 aylık olduğundan Anasınıfı, Anaokulu, Uygulama Sınıfına kayıt yaşı uygun değildir."}]
[2,{"$f":"CONCATENATE(\"Çocuğunuz \",A36,\" aylık olduğundan Anasınıfı, Anaokulu, Uygulama Sınıfına kayıt yaşı uygun değildir.\")","v":"Çocuğunuz 2 aylık olduğundan Anasınıfı, Anaokulu, Uygulama Sınıfına kayıt yaşı uygun değildir."}]
[3,"Çocuğunuz 3 aylık olduğundan Anasınıfı, Anaokulu, Uygulama Sınıfına kayıt yaşı uygun değildir."]
[4,"Çocuğunuz 4 aylık olduğundan Anasınıfı, Anaokulu, Uygulama Sınıfına kayıt yaşı uygun değildir."]
[5,"Çocuğunuz 5 aylık olduğundan Anasınıfı, Anaokulu, Uygulama Sınıfına kayıt yaşı uygun değildir."]
[6,"Çocuğunuz 6 aylık olduğundan Anasınıfı, Anaokulu, Uygulama Sınıfına kayıt yaşı uygun değildir."]
[7,"Çocuğunuz 7 aylık olduğundan Anasınıfı, Anaokulu, Uygulama Sınıfına kayıt yaşı uygun değildir."]
[8,"Çocuğunuz 8 aylık olduğundan Anasınıfı, Anaokulu, Uygulama Sınıfına kayıt yaşı uygun değildir."]
[9,"Çocuğunuz 9 aylık olduğundan Anasınıfı, Anaokulu, Uygulama Sınıfına kayıt yaşı uygun değildir."]
[10,"Çocuğunuz 10 aylık olduğundan Anasınıfı, Anaokulu, Uygulama Sınıfına kayıt yaşı uygun değildir."]
[11,"Çocuğunuz 11 aylık olduğundan Anasınıfı, Anaokulu, Uygulama Sınıfına kayıt yaşı uygun değildir."]
[12,"Çocuğunuz 12 aylık olduğundan Anasınıfı, Anaokulu, Uygulama Sınıfına kayıt yaşı uygun değildir."]
[13,"Çocuğunuz 13 aylık olduğundan Anasınıfı, Anaokulu, Uygulama Sınıfına kayıt yaşı uygun değildir."]
[14,"Çocuğunuz 14 aylık olduğundan Anasınıfı, Anaokulu, Uygulama Sınıfına kayıt yaşı uygun değildir."]
[15,"Çocuğunuz 15 aylık olduğundan Anasınıfı, Anaokulu, Uygulama Sınıfına kayıt yaşı uygun değildir."]
[16,"Çocuğunuz 16 aylık olduğundan Anasınıfı, Anaokulu, Uygulama Sınıfına kayıt yaşı uygun değildir."]
[17,"Çocuğunuz 17 aylık olduğundan Anasınıfı, Anaokulu, Uygulama Sınıfına kayıt yaşı uygun değildir."]
[18,"Çocuğunuz 18 aylık olduğundan Anasınıfı, Anaokulu, Uygulama Sınıfına kayıt yaşı uygun değildir."]
[19,"Çocuğunuz 19 aylık olduğundan Anasınıfı, Anaokulu, Uygulama Sınıfına kayıt yaşı uygun değildir."]
[20,"Çocuğunuz 20 aylık olduğundan Anasınıfı, Anaokulu, Uygulama Sınıfına kayıt yaşı uygun değildir."]
[21,"Çocuğunuz 21 aylık olduğundan Anasınıfı, Anaokulu, Uygulama Sınıfına kayıt yaşı uygun değildir."]
[22,"Çocuğunuz 22 aylık olduğundan Anasınıfı, Anaokulu, Uygulama Sınıfına kayıt yaşı uygun değildir."]
[23,"Çocuğunuz 23 aylık olduğundan Anasınıfı, Anaokulu, Uygulama Sınıfına kayıt yaşı uygun değildir."]
[24,"Çocuğunuz 24 aylık olduğundan Anasınıfı, Anaokulu, Uygulama Sınıfına kayıt yaşı uygun değildir."]
[25,"Çocuğunuz 25 aylık olduğundan Anasınıfı, Anaokulu, Uygulama Sınıfına kayıt yaşı uygun değildir."]
[26,"Çocuğunuz 26 aylık olduğundan Anasınıfı, Anaokulu, Uygulama Sınıfına kayıt yaşı uygun değildir."]
[27,"Çocuğunuz 27 aylık olduğundan Anasınıfı, Anaokulu, Uygulama Sınıfına kayıt yaşı uygun değildir."]
[28,"Çocuğunuz 28 aylık olduğundan Anasınıfı, Anaokulu, Uygulama Sınıfına kayıt yaşı uygun değildir."]
[29,"Çocuğunuz 29 aylık olduğundan Anasınıfı, Anaokulu, Uygulama Sınıfına kayıt yaşı uygun değildir."]
[30,"Çocuğunuz 30 aylık olduğundan Anasınıfı, Anaokulu, Uygulama Sınıfına kayıt yaşı uygun değildir."]
[31,"Çocuğunuz 31 aylık olduğundan Anasınıfı, Anaokulu, Uygulama Sınıfına kayıt yaşı uygun değildir."]
[32,"Çocuğunuz 32 aylık olduğundan Anasınıfı, Anaokulu, Uygulama Sınıfına kayıt yaşı uygun değildir."]
[33,"Çocuğunuz 33 aylık olduğundan Anasınıfı, Anaokulu, Uygulama Sınıfına kayıt yaşı uygun değildir."]
[34,"Çocuğunuz 34 aylık olduğundan Anasınıfı, Anaokulu, Uygulama Sınıfına kayıt yaşı uygun değildir."]
[35,"Çocuğunuz 35 aylık olduğundan Anasınıfı, Anaokulu, Uygulama Sınıfına kayıt yaşı uygun değildir."]
[36,{"$f":"CONCATENATE(\"Çocuğunuz \",A70,\" \"&C70)","v":"Çocuğunuz 36 aylık olduğundan Okulun kayıt alanında ikamet eden ve bir sonraki eğitim ve öğretim yılında ilkokula başlayacak çocukların kaydı yapıldıktan sonra fiziki imkanları yeterli olan Anaokulu ve Uygulama Sınıflarına 36-56 aylık, Ana Sınıflarına ise 45-56 aylık çocuklar da kaydedilebilir.\nBir grup oluşturabilecek kadar çocuk bulunmayan okullarda 36-68 aylık çocuklar da aynı Ana Sınıfına kaydedilebilir. "},"aylık olduğundan Okulun kayıt alanında ikamet eden ve bir sonraki eğitim ve öğretim yılında ilkokula başlayacak çocukların kaydı yapıldıktan sonra fiziki imkanları yeterli olan Anaokulu ve Uygulama Sınıflarına 36-56 aylık, Ana Sınıflarına ise 45-56 aylık çocuklar da kaydedilebilir.\nBir grup oluşturabilecek kadar çocuk bulunmayan okullarda 36-68 aylık çocuklar da aynı Ana Sınıfına kaydedilebilir. "]
[37,{"$f":"CONCATENATE(\"Çocuğunuz \",A71,\" \"&C71)","v":"Çocuğunuz 37 aylık olduğundan Okulun kayıt alanında ikamet eden ve bir sonraki eğitim ve öğretim yılında ilkokula başlayacak çocukların kaydı yapıldıktan sonra fiziki imkanları yeterli olan Anaokulu ve Uygulama Sınıflarına 36-56 aylık, Ana Sınıflarına ise 45-56 aylık çocuklar da kaydedilebilir.\nBir grup oluşturabilecek kadar çocuk bulunmayan okullarda 36-68 aylık çocuklar da aynı Ana Sınıfına kaydedilebilir. "},"aylık olduğundan Okulun kayıt alanında ikamet eden ve bir sonraki eğitim ve öğretim yılında ilkokula başlayacak çocukların kaydı yapıldıktan sonra fiziki imkanları yeterli olan Anaokulu ve Uygulama Sınıflarına 36-56 aylık, Ana Sınıflarına ise 45-56 aylık çocuklar da kaydedilebilir.\nBir grup oluşturabilecek kadar çocuk bulunmayan okullarda 36-68 aylık çocuklar da aynı Ana Sınıfına kaydedilebilir. "]
[38,"Çocuğunuz 38 aylık olduğundan Okulun kayıt alanında ikamet eden ve bir sonraki eğitim ve öğretim yılında ilkokula başlayacak çocukların kaydı yapıldıktan sonra fiziki imkanları yeterli olan Anaokulu ve Uygulama Sınıflarına 36-56 aylık, Ana Sınıflarına ise 45-56 aylık çocuklar da kaydedilebilir.\nBir grup oluşturabilecek kadar çocuk bulunmayan okullarda 36-68 aylık çocuklar da aynı Ana Sınıfına kaydedilebilir. ","aylık olduğundan Okulun kayıt alanında ikamet eden ve bir sonraki eğitim ve öğretim yılında ilkokula başlayacak çocukların kaydı yapıldıktan sonra fiziki imkanları yeterli olan Anaokulu ve Uygulama Sınıflarına 36-56 aylık, Ana Sınıflarına ise 45-56 aylık çocuklar da kaydedilebilir.\nBir grup oluşturabilecek kadar çocuk bulunmayan okullarda 36-68 aylık çocuklar da aynı Ana Sınıfına kaydedilebilir. "]
[39,"Çocuğunuz 39 aylık olduğundan Okulun kayıt alanında ikamet eden ve bir sonraki eğitim ve öğretim yılında ilkokula başlayacak çocukların kaydı yapıldıktan sonra fiziki imkanları yeterli olan Anaokulu ve Uygulama Sınıflarına 36-56 aylık, Ana Sınıflarına ise 45-56 aylık çocuklar da kaydedilebilir.\nBir grup oluşturabilecek kadar çocuk bulunmayan okullarda 36-68 aylık çocuklar da aynı Ana Sınıfına kaydedilebilir. ","aylık olduğundan Okulun kayıt alanında ikamet eden ve bir sonraki eğitim ve öğretim yılında ilkokula başlayacak çocukların kaydı yapıldıktan sonra fiziki imkanları yeterli olan Anaokulu ve Uygulama Sınıflarına 36-56 aylık, Ana Sınıflarına ise 45-56 aylık çocuklar da kaydedilebilir.\nBir grup oluşturabilecek kadar çocuk bulunmayan okullarda 36-68 aylık çocuklar da aynı Ana Sınıfına kaydedilebilir. "]
[40,"Çocuğunuz 40 aylık olduğundan Okulun kayıt alanında ikamet eden ve bir sonraki eğitim ve öğretim yılında ilkokula başlayacak çocukların kaydı yapıldıktan sonra fiziki imkanları yeterli olan Anaokulu ve Uygulama Sınıflarına 36-56 aylık, Ana Sınıflarına ise 45-56 aylık çocuklar da kaydedilebilir.\nBir grup oluşturabilecek kadar çocuk bulunmayan okullarda 36-68 aylık çocuklar da aynı Ana Sınıfına kaydedilebilir. ","aylık olduğundan Okulun kayıt alanında ikamet eden ve bir sonraki eğitim ve öğretim yılında ilkokula başlayacak çocukların kaydı yapıldıktan sonra fiziki imkanları yeterli olan Anaokulu ve Uygulama Sınıflarına 36-56 aylık, Ana Sınıflarına ise 45-56 aylık çocuklar da kaydedilebilir.\nBir grup oluşturabilecek kadar çocuk bulunmayan okullarda 36-68 aylık çocuklar da aynı Ana Sınıfına kaydedilebilir. "]
[41,"Çocuğunuz 41 aylık olduğundan Okulun kayıt alanında ikamet eden ve bir sonraki eğitim ve öğretim yılında ilkokula başlayacak çocukların kaydı yapıldıktan sonra fiziki imkanları yeterli olan Anaokulu ve Uygulama Sınıflarına 36-56 aylık, Ana Sınıflarına ise 45-56 aylık çocuklar da kaydedilebilir.\nBir grup oluşturabilecek kadar çocuk bulunmayan okullarda 36-68 aylık çocuklar da aynı Ana Sınıfına kaydedilebilir. ","aylık olduğundan Okulun kayıt alanında ikamet eden ve bir sonraki eğitim ve öğretim yılında ilkokula başlayacak çocukların kaydı yapıldıktan sonra fiziki imkanları yeterli olan Anaokulu ve Uygulama Sınıflarına 36-56 aylık, Ana Sınıflarına ise 45-56 aylık çocuklar da kaydedilebilir.\nBir grup oluşturabilecek kadar çocuk bulunmayan okullarda 36-68 aylık çocuklar da aynı Ana Sınıfına kaydedilebilir. "]
[42,"Çocuğunuz 42 aylık olduğundan Okulun kayıt alanında ikamet eden ve bir sonraki eğitim ve öğretim yılında ilkokula başlayacak çocukların kaydı yapıldıktan sonra fiziki imkanları yeterli olan Anaokulu ve Uygulama Sınıflarına 36-56 aylık, Ana Sınıflarına ise 45-56 aylık çocuklar da kaydedilebilir.\nBir grup oluşturabilecek kadar çocuk bulunmayan okullarda 36-68 aylık çocuklar da aynı Ana Sınıfına kaydedilebilir. ","aylık olduğundan Okulun kayıt alanında ikamet eden ve bir sonraki eğitim ve öğretim yılında ilkokula başlayacak çocukların kaydı yapıldıktan sonra fiziki imkanları yeterli olan Anaokulu ve Uygulama Sınıflarına 36-56 aylık, Ana Sınıflarına ise 45-56 aylık çocuklar da kaydedilebilir.\nBir grup oluşturabilecek kadar çocuk bulunmayan okullarda 36-68 aylık çocuklar da aynı Ana Sınıfına kaydedilebilir. "]
[43,"Çocuğunuz 43 aylık olduğundan Okulun kayıt alanında ikamet eden ve bir sonraki eğitim ve öğretim yılında ilkokula başlayacak çocukların kaydı yapıldıktan sonra fiziki imkanları yeterli olan Anaokulu ve Uygulama Sınıflarına 36-56 aylık, Ana Sınıflarına ise 45-56 aylık çocuklar da kaydedilebilir.\nBir grup oluşturabilecek kadar çocuk bulunmayan okullarda 36-68 aylık çocuklar da aynı Ana Sınıfına kaydedilebilir. ","aylık olduğundan Okulun kayıt alanında ikamet eden ve bir sonraki eğitim ve öğretim yılında ilkokula başlayacak çocukların kaydı yapıldıktan sonra fiziki imkanları yeterli olan Anaokulu ve Uygulama Sınıflarına 36-56 aylık, Ana Sınıflarına ise 45-56 aylık çocuklar da kaydedilebilir.\nBir grup oluşturabilecek kadar çocuk bulunmayan okullarda 36-68 aylık çocuklar da aynı Ana Sınıfına kaydedilebilir. "]
[44,"Çocuğunuz 44 aylık olduğundan Okulun kayıt alanında ikamet eden ve bir sonraki eğitim ve öğretim yılında ilkokula başlayacak çocukların kaydı yapıldıktan sonra fiziki imkanları yeterli olan Anaokulu ve Uygulama Sınıflarına 36-56 aylık, Ana Sınıflarına ise 45-56 aylık çocuklar da kaydedilebilir.\nBir grup oluşturabilecek kadar çocuk bulunmayan okullarda 36-68 aylık çocuklar da aynı Ana Sınıfına kaydedilebilir. ","aylık olduğundan Okulun kayıt alanında ikamet eden ve bir sonraki eğitim ve öğretim yılında ilkokula başlayacak çocukların kaydı yapıldıktan sonra fiziki imkanları yeterli olan Anaokulu ve Uygulama Sınıflarına 36-56 aylık, Ana Sınıflarına ise 45-56 aylık çocuklar da kaydedilebilir.\nBir grup oluşturabilecek kadar çocuk bulunmayan okullarda 36-68 aylık çocuklar da aynı Ana Sınıfına kaydedilebilir. "]
[45,"Çocuğunuz 45 aylık olduğundan Okulun kayıt alanında ikamet eden ve bir sonraki eğitim ve öğretim yılında ilkokula başlayacak çocukların kaydı yapıldıktan sonra fiziki imkanları yeterli olan Anaokulu ve Uygulama Sınıflarına 36-56 aylık, Ana Sınıflarına ise 45-56 aylık çocuklar da kaydedilebilir.\nBir grup oluşturabilecek kadar çocuk bulunmayan okullarda 36-68 aylık çocuklar da aynı Ana Sınıfına kaydedilebilir. ","aylık olduğundan Okulun kayıt alanında ikamet eden ve bir sonraki eğitim ve öğretim yılında ilkokula başlayacak çocukların kaydı yapıldıktan sonra fiziki imkanları yeterli olan Anaokulu ve Uygulama Sınıflarına 36-56 aylık, Ana Sınıflarına ise 45-56 aylık çocuklar da kaydedilebilir.\nBir grup oluşturabilecek kadar çocuk bulunmayan okullarda 36-68 aylık çocuklar da aynı Ana Sınıfına kaydedilebilir. "]
[46,"Çocuğunuz 46 aylık olduğundan Okulun kayıt alanında ikamet eden ve bir sonraki eğitim ve öğretim yılında ilkokula başlayacak çocukların kaydı yapıldıktan sonra fiziki imkanları yeterli olan Anaokulu ve Uygulama Sınıflarına 36-56 aylık, Ana Sınıflarına ise 45-56 aylık çocuklar da kaydedilebilir.\nBir grup oluşturabilecek kadar çocuk bulunmayan okullarda 36-68 aylık çocuklar da aynı Ana Sınıfına kaydedilebilir. ","aylık olduğundan Okulun kayıt alanında ikamet eden ve bir sonraki eğitim ve öğretim yılında ilkokula başlayacak çocukların kaydı yapıldıktan sonra fiziki imkanları yeterli olan Anaokulu ve Uygulama Sınıflarına 36-56 aylık, Ana Sınıflarına ise 45-56 aylık çocuklar da kaydedilebilir.\nBir grup oluşturabilecek kadar çocuk bulunmayan okullarda 36-68 aylık çocuklar da aynı Ana Sınıfına kaydedilebilir. "]
[47,"Çocuğunuz 47 aylık olduğundan Okulun kayıt alanında ikamet eden ve bir sonraki eğitim ve öğretim yılında ilkokula başlayacak çocukların kaydı yapıldıktan sonra fiziki imkanları yeterli olan Anaokulu ve Uygulama Sınıflarına 36-56 aylık, Ana Sınıflarına ise 45-56 aylık çocuklar da kaydedilebilir.\nBir grup oluşturabilecek kadar çocuk bulunmayan okullarda 36-68 aylık çocuklar da aynı Ana Sınıfına kaydedilebilir. ","aylık olduğundan Okulun kayıt alanında ikamet eden ve bir sonraki eğitim ve öğretim yılında ilkokula başlayacak çocukların kaydı yapıldıktan sonra fiziki imkanları yeterli olan Anaokulu ve Uygulama Sınıflarına 36-56 aylık, Ana Sınıflarına ise 45-56 aylık çocuklar da kaydedilebilir.\nBir grup oluşturabilecek kadar çocuk bulunmayan okullarda 36-68 aylık çocuklar da aynı Ana Sınıfına kaydedilebilir. "]
[48,"Çocuğunuz 48 aylık olduğundan Okulun kayıt alanında ikamet eden ve bir sonraki eğitim ve öğretim yılında ilkokula başlayacak çocukların kaydı yapıldıktan sonra fiziki imkanları yeterli olan Anaokulu ve Uygulama Sınıflarına 36-56 aylık, Ana Sınıflarına ise 45-56 aylık çocuklar da kaydedilebilir.\nBir grup oluşturabilecek kadar çocuk bulunmayan okullarda 36-68 aylık çocuklar da aynı Ana Sınıfına kaydedilebilir. ","aylık olduğundan Okulun kayıt alanında ikamet eden ve bir sonraki eğitim ve öğretim yılında ilkokula başlayacak çocukların kaydı yapıldıktan sonra fiziki imkanları yeterli olan Anaokulu ve Uygulama Sınıflarına 36-56 aylık, Ana Sınıflarına ise 45-56 aylık çocuklar da kaydedilebilir.\nBir grup oluşturabilecek kadar çocuk bulunmayan okullarda 36-68 aylık çocuklar da aynı Ana Sınıfına kaydedilebilir. "]
[49,"Çocuğunuz 49 aylık olduğundan Okulun kayıt alanında ikamet eden ve bir sonraki eğitim ve öğretim yılında ilkokula başlayacak çocukların kaydı yapıldıktan sonra fiziki imkanları yeterli olan Anaokulu ve Uygulama Sınıflarına 36-56 aylık, Ana Sınıflarına ise 45-56 aylık çocuklar da kaydedilebilir.\nBir grup oluşturabilecek kadar çocuk bulunmayan okullarda 36-68 aylık çocuklar da aynı Ana Sınıfına kaydedilebilir. ","aylık olduğundan Okulun kayıt alanında ikamet eden ve bir sonraki eğitim ve öğretim yılında ilkokula başlayacak çocukların kaydı yapıldıktan sonra fiziki imkanları yeterli olan Anaokulu ve Uygulama Sınıflarına 36-56 aylık, Ana Sınıflarına ise 45-56 aylık çocuklar da kaydedilebilir.\nBir grup oluşturabilecek kadar çocuk bulunmayan okullarda 36-68 aylık çocuklar da aynı Ana Sınıfına kaydedilebilir. "]
[50,"Çocuğunuz 50 aylık olduğundan Okulun kayıt alanında ikamet eden ve bir sonraki eğitim ve öğretim yılında ilkokula başlayacak çocukların kaydı yapıldıktan sonra fiziki imkanları yeterli olan Anaokulu ve Uygulama Sınıflarına 36-56 aylık, Ana Sınıflarına ise 45-56 aylık çocuklar da kaydedilebilir.\nBir grup oluşturabilecek kadar çocuk bulunmayan okullarda 36-68 aylık çocuklar da aynı Ana Sınıfına kaydedilebilir. ","aylık olduğundan Okulun kayıt alanında ikamet eden ve bir sonraki eğitim ve öğretim yılında ilkokula başlayacak çocukların kaydı yapıldıktan sonra fiziki imkanları yeterli olan Anaokulu ve Uygulama Sınıflarına 36-56 aylık, Ana Sınıflarına ise 45-56 aylık çocuklar da kaydedilebilir.\nBir grup oluşturabilecek kadar çocuk bulunmayan okullarda 36-68 aylık çocuklar da aynı Ana Sınıfına kaydedilebilir. "]
[51,"Çocuğunuz 51 aylık olduğundan Okulun kayıt alanında ikamet eden ve bir sonraki eğitim ve öğretim yılında ilkokula başlayacak çocukların kaydı yapıldıktan sonra fiziki imkanları yeterli olan Anaokulu ve Uygulama Sınıflarına 36-56 aylık, Ana Sınıflarına ise 45-56 aylık çocuklar da kaydedilebilir.\nBir grup oluşturabilecek kadar çocuk bulunmayan okullarda 36-68 aylık çocuklar da aynı Ana Sınıfına kaydedilebilir. ","aylık olduğundan Okulun kayıt alanında ikamet eden ve bir sonraki eğitim ve öğretim yılında ilkokula başlayacak çocukların kaydı yapıldıktan sonra fiziki imkanları yeterli olan Anaokulu ve Uygulama Sınıflarına 36-56 aylık, Ana Sınıflarına ise 45-56 aylık çocuklar da kaydedilebilir.\nBir grup oluşturabilecek kadar çocuk bulunmayan okullarda 36-68 aylık çocuklar da aynı Ana Sınıfına kaydedilebilir. "]
[52,"Çocuğunuz 52 aylık olduğundan Okulun kayıt alanında ikamet eden ve bir sonraki eğitim ve öğretim yılında ilkokula başlayacak çocukların kaydı yapıldıktan sonra fiziki imkanları yeterli olan Anaokulu ve Uygulama Sınıflarına 36-56 aylık, Ana Sınıflarına ise 45-56 aylık çocuklar da kaydedilebilir.\nBir grup oluşturabilecek kadar çocuk bulunmayan okullarda 36-68 aylık çocuklar da aynı Ana Sınıfına kaydedilebilir. ","aylık olduğundan Okulun kayıt alanında ikamet eden ve bir sonraki eğitim ve öğretim yılında ilkokula başlayacak çocukların kaydı yapıldıktan sonra fiziki imkanları yeterli olan Anaokulu ve Uygulama Sınıflarına 36-56 aylık, Ana Sınıflarına ise 45-56 aylık çocuklar da kaydedilebilir.\nBir grup oluşturabilecek kadar çocuk bulunmayan okullarda 36-68 aylık çocuklar da aynı Ana Sınıfına kaydedilebilir. "]
[53,"Çocuğunuz 53 aylık olduğundan Okulun kayıt alanında ikamet eden ve bir sonraki eğitim ve öğretim yılında ilkokula başlayacak çocukların kaydı yapıldıktan sonra fiziki imkanları yeterli olan Anaokulu ve Uygulama Sınıflarına 36-56 aylık, Ana Sınıflarına ise 45-56 aylık çocuklar da kaydedilebilir.\nBir grup oluşturabilecek kadar çocuk bulunmayan okullarda 36-68 aylık çocuklar da aynı Ana Sınıfına kaydedilebilir. ","aylık olduğundan Okulun kayıt alanında ikamet eden ve bir sonraki eğitim ve öğretim yılında ilkokula başlayacak çocukların kaydı yapıldıktan sonra fiziki imkanları yeterli olan Anaokulu ve Uygulama Sınıflarına 36-56 aylık, Ana Sınıflarına ise 45-56 aylık çocuklar da kaydedilebilir.\nBir grup oluşturabilecek kadar çocuk bulunmayan okullarda 36-68 aylık çocuklar da aynı Ana Sınıfına kaydedilebilir. "]
[54,"Çocuğunuz 54 aylık olduğundan Okulun kayıt alanında ikamet eden ve bir sonraki eğitim ve öğretim yılında ilkokula başlayacak çocukların kaydı yapıldıktan sonra fiziki imkanları yeterli olan Anaokulu ve Uygulama Sınıflarına 36-56 aylık, Ana Sınıflarına ise 45-56 aylık çocuklar da kaydedilebilir.\nBir grup oluşturabilecek kadar çocuk bulunmayan okullarda 36-68 aylık çocuklar da aynı Ana Sınıfına kaydedilebilir. ","aylık olduğundan Okulun kayıt alanında ikamet eden ve bir sonraki eğitim ve öğretim yılında ilkokula başlayacak çocukların kaydı yapıldıktan sonra fiziki imkanları yeterli olan Anaokulu ve Uygulama Sınıflarına 36-56 aylık, Ana Sınıflarına ise 45-56 aylık çocuklar da kaydedilebilir.\nBir grup oluşturabilecek kadar çocuk bulunmayan okullarda 36-68 aylık çocuklar da aynı Ana Sınıfına kaydedilebilir. "]
[55,"Çocuğunuz 55 aylık olduğundan Okulun kayıt alanında ikamet eden ve bir sonraki eğitim ve öğretim yılında ilkokula başlayacak çocukların kaydı yapıldıktan sonra fiziki imkanları yeterli olan Anaokulu ve Uygulama Sınıflarına 36-56 aylık, Ana Sınıflarına ise 45-56 aylık çocuklar da kaydedilebilir.\nBir grup oluşturabilecek kadar çocuk bulunmayan okullarda 36-68 aylık çocuklar da aynı Ana Sınıfına kaydedilebilir. ","aylık olduğundan Okulun kayıt alanında ikamet eden ve bir sonraki eğitim ve öğretim yılında ilkokula başlayacak çocukların kaydı yapıldıktan sonra fiziki imkanları yeterli olan Anaokulu ve Uygulama Sınıflarına 36-56 aylık, Ana Sınıflarına ise 45-56 aylık çocuklar da kaydedilebilir.\nBir grup oluşturabilecek kadar çocuk bulunmayan okullarda 36-68 aylık çocuklar da aynı Ana Sınıfına kaydedilebilir. "]
[56,"Çocuğunuz 56 aylık olduğundan Okulun kayıt alanında ikamet eden ve bir sonraki eğitim ve öğretim yılında ilkokula başlayacak çocukların kaydı yapıldıktan sonra fiziki imkanları yeterli olan Anaokulu ve Uygulama Sınıflarına 36-56 aylık, Ana Sınıflarına ise 45-56 aylık çocuklar da kaydedilebilir.\nBir grup oluşturabilecek kadar çocuk bulunmayan okullarda 36-68 aylık çocuklar da aynı Ana Sınıfına kaydedilebilir. ","aylık olduğundan Okulun kayıt alanında ikamet eden ve bir sonraki eğitim ve öğretim yılında ilkokula başlayacak çocukların kaydı yapıldıktan sonra fiziki imkanları yeterli olan Anaokulu ve Uygulama Sınıflarına 36-56 aylık, Ana Sınıflarına ise 45-56 aylık çocuklar da kaydedilebilir.\nBir grup oluşturabilecek kadar çocuk bulunmayan okullarda 36-68 aylık çocuklar da aynı Ana Sınıfına kaydedilebilir. "]
[57,{"$f":"CONCATENATE(\"Çocuğunuz \",A91,\" aylık olduğundan Anaokulu, Ana Sınıfı ve Uygulama Sınıfına kaydı yapılır. Anaokulu, Ana Sınıfı ve Uygulama Sınıflarına, kayıtların yapıldığı eylül ayı sonu itibariyle 57-68 aylık çocukların kaydı yapılır.\")","v":"Çocuğunuz 57 aylık olduğundan Anaokulu, Ana Sınıfı ve Uygulama Sınıfına kaydı yapılır. Anaokulu, Ana Sınıfı ve Uygulama Sınıflarına, kayıtların yapıldığı eylül ayı sonu itibariyle 57-68 aylık çocukların kaydı yapılır."}]
[58,{"$f":"CONCATENATE(\"Çocuğunuz \",A92,\" aylık olduğundan Anaokulu, Ana Sınıfı ve Uygulama Sınıfına kaydı yapılır. Anaokulu, Ana Sınıfı ve Uygulama Sınıflarına, kayıtların yapıldığı eylül ayı sonu itibariyle 57-68 aylık çocukların kaydı yapılır.\")","v":"Çocuğunuz 58 aylık olduğundan Anaokulu, Ana Sınıfı ve Uygulama Sınıfına kaydı yapılır. Anaokulu, Ana Sınıfı ve Uygulama Sınıflarına, kayıtların yapıldığı eylül ayı sonu itibariyle 57-68 aylık çocukların kaydı yapılır."}]
[59,"Çocuğunuz 59 aylık olduğundan Anaokulu, Ana Sınıfı ve Uygulama Sınıfına kaydı yapılır. Anaokulu, Ana Sınıfı ve Uygulama Sınıflarına, kayıtların yapıldığı eylül ayı sonu itibariyle 57-68 aylık çocukların kaydı yapılır."]
[60,"Çocuğunuz 60 aylık olduğundan Anaokulu, Ana Sınıfı ve Uygulama Sınıfına kaydı yapılır. Anaokulu, Ana Sınıfı ve Uygulama Sınıflarına, kayıtların yapıldığı eylül ayı sonu itibariyle 57-68 aylık çocukların kaydı yapılır."]
[61,"Çocuğunuz 61 aylık olduğundan Anaokulu, Ana Sınıfı ve Uygulama Sınıfına kaydı yapılır. Anaokulu, Ana Sınıfı ve Uygulama Sınıflarına, kayıtların yapıldığı eylül ayı sonu itibariyle 57-68 aylık çocukların kaydı yapılır."]
[62,"Çocuğunuz 62 aylık olduğundan Anaokulu, Ana Sınıfı ve Uygulama Sınıfına kaydı yapılır. Anaokulu, Ana Sınıfı ve Uygulama Sınıflarına, kayıtların yapıldığı eylül ayı sonu itibariyle 57-68 aylık çocukların kaydı yapılır."]
[63,"Çocuğunuz 63 aylık olduğundan Anaokulu, Ana Sınıfı ve Uygulama Sınıfına kaydı yapılır. Anaokulu, Ana Sınıfı ve Uygulama Sınıflarına, kayıtların yapıldığı eylül ayı sonu itibariyle 57-68 aylık çocukların kaydı yapılır."]
[64,"Çocuğunuz 64 aylık olduğundan Anaokulu, Ana Sınıfı ve Uygulama Sınıfına kaydı yapılır. Anaokulu, Ana Sınıfı ve Uygulama Sınıflarına, kayıtların yapıldığı eylül ayı sonu itibariyle 57-68 aylık çocukların kaydı yapılır."]
[65,"Çocuğunuz 65 aylık olduğundan Anaokulu, Ana Sınıfı ve Uygulama Sınıfına kaydı yapılır. Anaokulu, Ana Sınıfı ve Uygulama Sınıflarına, kayıtların yapıldığı eylül ayı sonu itibariyle 57-68 aylık çocukların kaydı yapılır."]
[66,"Çocuğunuz 66 aylık olduğundan Anaokulu, Ana Sınıfı ve Uygulama Sınıfına kaydı yapılır. Anaokulu, Ana Sınıfı ve Uygulama Sınıflarına, kayıtların yapıldığı eylül ayı sonu itibariyle 57-68 aylık çocukların kaydı yapılır."]
[67,"Çocuğunuz 67 aylık olduğundan Anaokulu, Ana Sınıfı ve Uygulama Sınıfına kaydı yapılır. Anaokulu, Ana Sınıfı ve Uygulama Sınıflarına, kayıtların yapıldığı eylül ayı sonu itibariyle 57-68 aylık çocukların kaydı yapılır."]
[68,"Çocuğunuz 68 aylık olduğundan Anaokulu, Ana Sınıfı ve Uygulama Sınıfına kaydı yapılır. Anaokulu, Ana Sınıfı ve Uygulama Sınıflarına, kayıtların yapıldığı eylül ayı sonu itibariyle 57-68 aylık çocukların kaydı yapılır."]
[69,{"$f":"CONCATENATE(\"Çocuğunuz \",A103,\" aylık olduğundan İlkokul 1. sınıfa kaydı yapılmalıdır.\",\" Okul müdürlükleri, yaşça kayıt hakkını elde eden çocuklardan 69, 70 ve 71 aylık olanları velisinin yazılı talebi bulunması halinde okul öncesi eğitime yönlendirir veya kayıtlarını bir yıl erteleyebilir.\")","v":"Çocuğunuz 69 aylık olduğundan İlkokul 1. sınıfa kaydı yapılmalıdır. Okul müdürlükleri, yaşça kayıt hakkını elde eden çocuklardan 69, 70 ve 71 aylık olanları velisinin yazılı talebi bulunması halinde okul öncesi eğitime yönlendirir veya kayıtlarını bir yıl erteleyebilir."}]
[70,{"$f":"CONCATENATE(\"Çocuğunuz \",A104,\" aylık olduğundan İlkokul 1. sınıfa kaydı yapılmalıdır.\",\" Okul müdürlükleri, yaşça kayıt hakkını elde eden çocuklardan 69, 70 ve 71 aylık olanları velisinin yazılı talebi bulunması halinde okul öncesi eğitime yönlendirir veya kayıtlarını bir yıl erteleyebilir.\")","v":"Çocuğunuz 70 aylık olduğundan İlkokul 1. sınıfa kaydı yapılmalıdır. Okul müdürlükleri, yaşça kayıt hakkını elde eden çocuklardan 69, 70 ve 71 aylık olanları velisinin yazılı talebi bulunması halinde okul öncesi eğitime yönlendirir veya kayıtlarını bir yıl erteleyebilir."}]
[71,"Çocuğunuz 71 aylık olduğundan İlkokul 1. sınıfa kaydı yapılmalıdır. Okul müdürlükleri, yaşça kayıt hakkını elde eden çocuklardan 69, 70 ve 71 aylık olanları velisinin yazılı talebi bulunması halinde okul öncesi eğitime yönlendirir veya kayıtlarını bir yıl erteleyebilir."]
[72,{"$f":"CONCATENATE(\"Çocuğunuz \",A106,\" aylık olduğundan İlkokul 1. sınıf kayıt zorunludur. \")","v":"Çocuğunuz 72 aylık olduğundan İlkokul 1. sınıf kayıt zorunludur. "}]
[73,{"$f":"CONCATENATE(\"Çocuğunuz \",A107,\" aylık olduğundan İlkokul 1. sınıf kayıt zorunludur. \")","v":"Çocuğunuz 73 aylık olduğundan İlkokul 1. sınıf kayıt zorunludur. "}]
[74,"Çocuğunuz 74 aylık olduğundan İlkokul 1. sınıf kayıt zorunludur. "]
[75,"Çocuğunuz 75 aylık olduğundan İlkokul 1. sınıf kayıt zorunludur. "]
[76,{"$f":"CONCATENATE(\"Çocuğunuz \",A110,\" aylık olduğundan İlkokul 1. sınıf kayıt zorunludur. \")","v":"Çocuğunuz 76 aylık olduğundan İlkokul 1. sınıf kayıt zorunludur. "}]
[77,"Çocuğunuz 77 aylık olduğundan İlkokul 1. sınıf kayıt zorunludur. "]
[78,"Çocuğunuz 78 aylık olduğundan İlkokul 1. sınıf kayıt zorunludur. "]
[79,{"$f":"CONCATENATE(\"Çocuğunuz \",A113,\" aylık olduğundan Mecburi ilköğretim çağında olup herhangi bir sebeple okula kaydı yapılmamış okuma yazma bilmeyen çocukların kayıtları birinci sınıfa yapılır. \")","v":"Çocuğunuz 79 aylık olduğundan Mecburi ilköğretim çağında olup herhangi bir sebeple okula kaydı yapılmamış okuma yazma bilmeyen çocukların kayıtları birinci sınıfa yapılır. "}]
[80,{"$f":"CONCATENATE(\"Çocuğunuz \",A114,\" aylık olduğundan Mecburi ilköğretim çağında olup herhangi bir sebeple okula kaydı yapılmamış okuma yazma bilmeyen çocukların kayıtları birinci sınıfa yapılır. \")","v":"Çocuğunuz 80 aylık olduğundan Mecburi ilköğretim çağında olup herhangi bir sebeple okula kaydı yapılmamış okuma yazma bilmeyen çocukların kayıtları birinci sınıfa yapılır. "}]
[81,"Çocuğunuz 81 aylık olduğundan Mecburi ilköğretim çağında olup herhangi bir sebeple okula kaydı yapılmamış okuma yazma bilmeyen çocukların kayıtları birinci sınıfa yapılır. "]
[82,"Çocuğunuz 82 aylık olduğundan Mecburi ilköğretim çağında olup herhangi bir sebeple okula kaydı yapılmamış okuma yazma bilmeyen çocukların kayıtları birinci sınıfa yapılır. "]
[83,"Çocuğunuz 83 aylık olduğundan Mecburi ilköğretim çağında olup herhangi bir sebeple okula kaydı yapılmamış okuma yazma bilmeyen çocukların kayıtları birinci sınıfa yapılır. "]
[84,"Çocuğunuz 84 aylık olduğundan Mecburi ilköğretim çağında olup herhangi bir sebeple okula kaydı yapılmamış okuma yazma bilmeyen çocukların kayıtları birinci sınıfa yapılır. "]
[85,"Çocuğunuz 85 aylık olduğundan Mecburi ilköğretim çağında olup herhangi bir sebeple okula kaydı yapılmamış okuma yazma bilmeyen çocukların kayıtları birinci sınıfa yapılır. "]
[86,"Çocuğunuz 86 aylık olduğundan Mecburi ilköğretim çağında olup herhangi bir sebeple okula kaydı yapılmamış okuma yazma bilmeyen çocukların kayıtları birinci sınıfa yapılır. "]
[87,"Çocuğunuz 87 aylık olduğundan Mecburi ilköğretim çağında olup herhangi bir sebeple okula kaydı yapılmamış okuma yazma bilmeyen çocukların kayıtları birinci sınıfa yapılır. "]
[88,"Çocuğunuz 88 aylık olduğundan Mecburi ilköğretim çağında olup herhangi bir sebeple okula kaydı yapılmamış okuma yazma bilmeyen çocukların kayıtları birinci sınıfa yapılır. "]
[89,"Çocuğunuz 89 aylık olduğundan Mecburi ilköğretim çağında olup herhangi bir sebeple okula kaydı yapılmamış okuma yazma bilmeyen çocukların kayıtları birinci sınıfa yapılır. "]
[90,"Çocuğunuz 90 aylık olduğundan Mecburi ilköğretim çağında olup herhangi bir sebeple okula kaydı yapılmamış okuma yazma bilmeyen çocukların kayıtları birinci sınıfa yapılır. "]
[91,"Çocuğunuz 91 aylık olduğundan Mecburi ilköğretim çağında olup herhangi bir sebeple okula kaydı yapılmamış okuma yazma bilmeyen çocukların kayıtları birinci sınıfa yapılır. "]
[92,"Çocuğunuz 92 aylık olduğundan Mecburi ilköğretim çağında olup herhangi bir sebeple okula kaydı yapılmamış okuma yazma bilmeyen çocukların kayıtları birinci sınıfa yapılır. "]
[93,"Çocuğunuz 93 aylık olduğundan Mecburi ilköğretim çağında olup herhangi bir sebeple okula kaydı yapılmamış okuma yazma bilmeyen çocukların kayıtları birinci sınıfa yapılır. "]
[94,"Çocuğunuz 94 aylık olduğundan Mecburi ilköğretim çağında olup herhangi bir sebeple okula kaydı yapılmamış okuma yazma bilmeyen çocukların kayıtları birinci sınıfa yapılır. "]
[95,"Çocuğunuz 95 aylık olduğundan Mecburi ilköğretim çağında olup herhangi bir sebeple okula kaydı yapılmamış okuma yazma bilmeyen çocukların kayıtları birinci sınıfa yapılır. "]
[96,"Çocuğunuz 96 aylık olduğundan Mecburi ilköğretim çağında olup herhangi bir sebeple okula kaydı yapılmamış okuma yazma bilmeyen çocukların kayıtları birinci sınıfa yapılır. "]
[97,"Çocuğunuz 97 aylık olduğundan Mecburi ilköğretim çağında olup herhangi bir sebeple okula kaydı yapılmamış okuma yazma bilmeyen çocukların kayıtları birinci sınıfa yapılır. "]
[98,"Çocuğunuz 98 aylık olduğundan Mecburi ilköğretim çağında olup herhangi bir sebeple okula kaydı yapılmamış okuma yazma bilmeyen çocukların kayıtları birinci sınıfa yapılır. "]
[99,"Çocuğunuz 99 aylık olduğundan Mecburi ilköğretim çağında olup herhangi bir sebeple okula kaydı yapılmamış okuma yazma bilmeyen çocukların kayıtları birinci sınıfa yapılır. "]
[100,"Çocuğunuz 100 aylık olduğundan Mecburi ilköğretim çağında olup herhangi bir sebeple okula kaydı yapılmamış okuma yazma bilmeyen çocukların kayıtları birinci sınıfa yapılır. "]
[101,"Çocuğunuz 101 aylık olduğundan Mecburi ilköğretim çağında olup herhangi bir sebeple okula kaydı yapılmamış okuma yazma bilmeyen çocukların kayıtları birinci sınıfa yapılır. "]
[102,"Çocuğunuz 102 aylık olduğundan Mecburi ilköğretim çağında olup herhangi bir sebeple okula kaydı yapılmamış okuma yazma bilmeyen çocukların kayıtları birinci sınıfa yapılır. "]
[103,"Çocuğunuz 103 aylık olduğundan Mecburi ilköğretim çağında olup herhangi bir sebeple okula kaydı yapılmamış okuma yazma bilmeyen çocukların kayıtları birinci sınıfa yapılır. "]
[104,"Çocuğunuz 104 aylık olduğundan Mecburi ilköğretim çağında olup herhangi bir sebeple okula kaydı yapılmamış okuma yazma bilmeyen çocukların kayıtları birinci sınıfa yapılır. "]
[105,"Çocuğunuz 105 aylık olduğundan Mecburi ilköğretim çağında olup herhangi bir sebeple okula kaydı yapılmamış okuma yazma bilmeyen çocukların kayıtları birinci sınıfa yapılır. "]
[106,"Çocuğunuz 106 aylık olduğundan Mecburi ilköğretim çağında olup herhangi bir sebeple okula kaydı yapılmamış okuma yazma bilmeyen çocukların kayıtları birinci sınıfa yapılır. "]
[107,"Çocuğunuz 107 aylık olduğundan Mecburi ilköğretim çağında olup herhangi bir sebeple okula kaydı yapılmamış okuma yazma bilmeyen çocukların kayıtları birinci sınıfa yapılır. "]
[108,"Çocuğunuz 108 aylık olduğundan Mecburi ilköğretim çağında olup herhangi bir sebeple okula kaydı yapılmamış okuma yazma bilmeyen çocukların kayıtları birinci sınıfa yapılır. "]
[109,"Çocuğunuz 109 aylık olduğundan Mecburi ilköğretim çağında olup herhangi bir sebeple okula kaydı yapılmamış okuma yazma bilmeyen çocukların kayıtları birinci sınıfa yapılır. "]
[110,"Çocuğunuz 110 aylık olduğundan Mecburi ilköğretim çağında olup herhangi bir sebeple okula kaydı yapılmamış okuma yazma bilmeyen çocukların kayıtları birinci sınıfa yapılır. "]
[111,"Çocuğunuz 111 aylık olduğundan Mecburi ilköğretim çağında olup herhangi bir sebeple okula kaydı yapılmamış okuma yazma bilmeyen çocukların kayıtları birinci sınıfa yapılır. "]
[112,"Çocuğunuz 112 aylık olduğundan Mecburi ilköğretim çağında olup herhangi bir sebeple okula kaydı yapılmamış okuma yazma bilmeyen çocukların kayıtları birinci sınıfa yapılır. "]
[113,"Çocuğunuz 113 aylık olduğundan Mecburi ilköğretim çağında olup herhangi bir sebeple okula kaydı yapılmamış okuma yazma bilmeyen çocukların kayıtları birinci sınıfa yapılır. "]
[114,"Çocuğunuz 114 aylık olduğundan Mecburi ilköğretim çağında olup herhangi bir sebeple okula kaydı yapılmamış okuma yazma bilmeyen çocukların kayıtları birinci sınıfa yapılır. "]
[115,"Çocuğunuz 115 aylık olduğundan Mecburi ilköğretim çağında olup herhangi bir sebeple okula kaydı yapılmamış okuma yazma bilmeyen çocukların kayıtları birinci sınıfa yapılır. "]
[116,"Çocuğunuz 116 aylık olduğundan Mecburi ilköğretim çağında olup herhangi bir sebeple okula kaydı yapılmamış okuma yazma bilmeyen çocukların kayıtları birinci sınıfa yapılır. "]
[117,"Çocuğunuz 117 aylık olduğundan Mecburi ilköğretim çağında olup herhangi bir sebeple okula kaydı yapılmamış okuma yazma bilmeyen çocukların kayıtları birinci sınıfa yapılır. "]
[118,"Çocuğunuz 118 aylık olduğundan Mecburi ilköğretim çağında olup herhangi bir sebeple okula kaydı yapılmamış okuma yazma bilmeyen çocukların kayıtları birinci sınıfa yapılır. "]
[119,"Çocuğunuz 119 aylık olduğundan Mecburi ilköğretim çağında olup herhangi bir sebeple okula kaydı yapılmamış okuma yazma bilmeyen çocukların kayıtları birinci sınıfa yapılır. "]
[120,"Çocuğunuz 120 aylık olduğundan Mecburi ilköğretim çağında olup herhangi bir sebeple okula kaydı yapılmamış okuma yazma bilmeyen çocukların kayıtları birinci sınıfa yapılır. "]
[121,"Çocuğunuz 121 aylık olduğundan Mecburi ilköğretim çağında olup herhangi bir sebeple okula kaydı yapılmamış okuma yazma bilmeyen çocukların kayıtları birinci sınıfa yapılır. "]
[122,"Çocuğunuz 122 aylık olduğundan Mecburi ilköğretim çağında olup herhangi bir sebeple okula kaydı yapılmamış okuma yazma bilmeyen çocukların kayıtları birinci sınıfa yapılır. "]
[123,"Çocuğunuz 123 aylık olduğundan Mecburi ilköğretim çağında olup herhangi bir sebeple okula kaydı yapılmamış okuma yazma bilmeyen çocukların kayıtları birinci sınıfa yapılır. "]
[124,"Çocuğunuz 124 aylık olduğundan Mecburi ilköğretim çağında olup herhangi bir sebeple okula kaydı yapılmamış okuma yazma bilmeyen çocukların kayıtları birinci sınıfa yapılır. "]
[125,"Çocuğunuz 125 aylık olduğundan Mecburi ilköğretim çağında olup herhangi bir sebeple okula kaydı yapılmamış okuma yazma bilmeyen çocukların kayıtları birinci sınıfa yapılır. "]
[126,"Çocuğunuz 126 aylık olduğundan Mecburi ilköğretim çağında olup herhangi bir sebeple okula kaydı yapılmamış okuma yazma bilmeyen çocukların kayıtları birinci sınıfa yapılır. "]
[127,"Çocuğunuz 127 aylık olduğundan Mecburi ilköğretim çağında olup herhangi bir sebeple okula kaydı yapılmamış okuma yazma bilmeyen çocukların kayıtları birinci sınıfa yapılır. "]
[128,"Çocuğunuz 128 aylık olduğundan Mecburi ilköğretim çağında olup herhangi bir sebeple okula kaydı yapılmamış okuma yazma bilmeyen çocukların kayıtları birinci sınıfa yapılır. "]
[129,"Çocuğunuz 129 aylık olduğundan Mecburi ilköğretim çağında olup herhangi bir sebeple okula kaydı yapılmamış okuma yazma bilmeyen çocukların kayıtları birinci sınıfa yapılır. "]
[130,"Çocuğunuz 130 aylık olduğundan Mecburi ilköğretim çağında olup herhangi bir sebeple okula kaydı yapılmamış okuma yazma bilmeyen çocukların kayıtları birinci sınıfa yapılır. "]
[131,"Çocuğunuz 131 aylık olduğundan Mecburi ilköğretim çağında olup herhangi bir sebeple okula kaydı yapılmamış okuma yazma bilmeyen çocukların kayıtları birinci sınıfa yapılır. "]
[132,"Çocuğunuz 132 aylık olduğundan Mecburi ilköğretim çağında olup herhangi bir sebeple okula kaydı yapılmamış okuma yazma bilmeyen çocukların kayıtları birinci sınıfa yapılır. "]
[133,"Çocuğunuz 133 aylık olduğundan Mecburi ilköğretim çağında olup herhangi bir sebeple okula kaydı yapılmamış okuma yazma bilmeyen çocukların kayıtları birinci sınıfa yapılır. "]
[134,"Çocuğunuz 134 aylık olduğundan Mecburi ilköğretim çağında olup herhangi bir sebeple okula kaydı yapılmamış okuma yazma bilmeyen çocukların kayıtları birinci sınıfa yapılır. "]
[135,"Çocuğunuz 135 aylık olduğundan Mecburi ilköğretim çağında olup herhangi bir sebeple okula kaydı yapılmamış okuma yazma bilmeyen çocukların kayıtları birinci sınıfa yapılır. "]
[136,"Çocuğunuz 136 aylık olduğundan Mecburi ilköğretim çağında olup herhangi bir sebeple okula kaydı yapılmamış okuma yazma bilmeyen çocukların kayıtları birinci sınıfa yapılır. "]
[137,"Çocuğunuz 137 aylık olduğundan Mecburi ilköğretim çağında olup herhangi bir sebeple okula kaydı yapılmamış okuma yazma bilmeyen çocukların kayıtları birinci sınıfa yapılır. "]
[138,"Çocuğunuz 138 aylık olduğundan Mecburi ilköğretim çağında olup herhangi bir sebeple okula kaydı yapılmamış okuma yazma bilmeyen çocukların kayıtları birinci sınıfa yapılır. "]
[139,"Çocuğunuz 139 aylık olduğundan Mecburi ilköğretim çağında olup herhangi bir sebeple okula kaydı yapılmamış okuma yazma bilmeyen çocukların kayıtları birinci sınıfa yapılır. "]
[140,"Çocuğunuz 140 aylık olduğundan Mecburi ilköğretim çağında olup herhangi bir sebeple okula kaydı yapılmamış okuma yazma bilmeyen çocukların kayıtları birinci sınıfa yapılır. "]
[141,"Çocuğunuz 141 aylık olduğundan Mecburi ilköğretim çağında olup herhangi bir sebeple okula kaydı yapılmamış okuma yazma bilmeyen çocukların kayıtları birinci sınıfa yapılır. "]
[142,"Çocuğunuz 142 aylık olduğundan Mecburi ilköğretim çağında olup herhangi bir sebeple okula kaydı yapılmamış okuma yazma bilmeyen çocukların kayıtları birinci sınıfa yapılır. "]
[143,"Çocuğunuz 143 aylık olduğundan Mecburi ilköğretim çağında olup herhangi bir sebeple okula kaydı yapılmamış okuma yazma bilmeyen çocukların kayıtları birinci sınıfa yapılır. "]
[144,{"$f":"CONCATENATE(\"Çocuğunuz \",A178,\" aylık olduğundan Mecburi ilköğretim çağında olup herhangi bir sebeple okula kaydı yapılmamış okuma yazma bilmeyen çocukların kayıtları birinci sınıfa yapılır. \")","v":"Çocuğunuz 144 aylık olduğundan Mecburi ilköğretim çağında olup herhangi bir sebeple okula kaydı yapılmamış okuma yazma bilmeyen çocukların kayıtları birinci sınıfa yapılır. "}]
[145,"Çocuğunuz 145 aylık olduğundan Mecburi ilköğretim çağında olup herhangi bir sebeple okula kaydı yapılmamış okuma yazma bilmeyen çocukların kayıtları birinci sınıfa yapılır. "]
[146,"Çocuğunuz 146 aylık olduğundan Mecburi ilköğretim çağında olup herhangi bir sebeple okula kaydı yapılmamış okuma yazma bilmeyen çocukların kayıtları birinci sınıfa yapılır. "]
[147,"Çocuğunuz 147 aylık olduğundan Mecburi ilköğretim çağında olup herhangi bir sebeple okula kaydı yapılmamış okuma yazma bilmeyen çocukların kayıtları birinci sınıfa yapılır. "]
[148,"Çocuğunuz 148 aylık olduğundan Mecburi ilköğretim çağında olup herhangi bir sebeple okula kaydı yapılmamış okuma yazma bilmeyen çocukların kayıtları birinci sınıfa yapılır. "]
[149,"Çocuğunuz 149 aylık olduğundan Mecburi ilköğretim çağında olup herhangi bir sebeple okula kaydı yapılmamış okuma yazma bilmeyen çocukların kayıtları birinci sınıfa yapılır. "]
[150,"Çocuğunuz 150 aylık olduğundan Mecburi ilköğretim çağında olup herhangi bir sebeple okula kaydı yapılmamış okuma yazma bilmeyen çocukların kayıtları birinci sınıfa yapılır. "]
[151,"Çocuğunuz 151 aylık olduğundan Mecburi ilköğretim çağında olup herhangi bir sebeple okula kaydı yapılmamış okuma yazma bilmeyen çocukların kayıtları birinci sınıfa yapılır. "]
[152,"Çocuğunuz 152 aylık olduğundan Mecburi ilköğretim çağında olup herhangi bir sebeple okula kaydı yapılmamış okuma yazma bilmeyen çocukların kayıtları birinci sınıfa yapılır. "]
[153,"Çocuğunuz 153 aylık olduğundan Mecburi ilköğretim çağında olup herhangi bir sebeple okula kaydı yapılmamış okuma yazma bilmeyen çocukların kayıtları birinci sınıfa yapılır. "]
[154,"Çocuğunuz 154 aylık olduğundan Mecburi ilköğretim çağında olup herhangi bir sebeple okula kaydı yapılmamış okuma yazma bilmeyen çocukların kayıtları birinci sınıfa yapılır. "]
[155,"Çocuğunuz 155 aylık olduğundan Mecburi ilköğretim çağında olup herhangi bir sebeple okula kaydı yapılmamış okuma yazma bilmeyen çocukların kayıtları birinci sınıfa yapılır. "]
[156,"Çocuğunuz 156 aylık olduğundan Mecburi ilköğretim çağında olup herhangi bir sebeple okula kaydı yapılmamış okuma yazma bilmeyen çocukların kayıtları birinci sınıfa yapılır. "]
[157,"Çocuğunuz 157 aylık olduğundan Mecburi ilköğretim çağında olup herhangi bir sebeple okula kaydı yapılmamış okuma yazma bilmeyen çocukların kayıtları birinci sınıfa yapılır. "]
[158,"Çocuğunuz 158 aylık olduğundan Mecburi ilköğretim çağında olup herhangi bir sebeple okula kaydı yapılmamış okuma yazma bilmeyen çocukların kayıtları birinci sınıfa yapılır. "]
[159,"Çocuğunuz 159 aylık olduğundan Mecburi ilköğretim çağında olup herhangi bir sebeple okula kaydı yapılmamış okuma yazma bilmeyen çocukların kayıtları birinci sınıfa yapılır. "]
[160,"Çocuğunuz 160 aylık olduğundan Mecburi ilköğretim çağında olup herhangi bir sebeple okula kaydı yapılmamış okuma yazma bilmeyen çocukların kayıtları birinci sınıfa yapılır. "]
[161,"Çocuğunuz 161 aylık olduğundan Mecburi ilköğretim çağında olup herhangi bir sebeple okula kaydı yapılmamış okuma yazma bilmeyen çocukların kayıtları birinci sınıfa yapılır. "]
[162,"Çocuğunuz 162 aylık olduğundan Mecburi ilköğretim çağında olup herhangi bir sebeple okula kaydı yapılmamış okuma yazma bilmeyen çocukların kayıtları birinci sınıfa yapılır. "]
[163,"Çocuğunuz 163 aylık olduğundan Mecburi ilköğretim çağında olup herhangi bir sebeple okula kaydı yapılmamış okuma yazma bilmeyen çocukların kayıtları birinci sınıfa yapılır. "]
[164,"Çocuğunuz 164 aylık olduğundan Mecburi ilköğretim çağında olup herhangi bir sebeple okula kaydı yapılmamış okuma yazma bilmeyen çocukların kayıtları birinci sınıfa yapılır. "]
[165,"Çocuğunuz 165 aylık olduğundan Mecburi ilköğretim çağında olup herhangi bir sebeple okula kaydı yapılmamış okuma yazma bilmeyen çocukların kayıtları birinci sınıfa yapılır. "]
[166,"Çocuğunuz 166 aylık olduğundan Mecburi ilköğretim çağında olup herhangi bir sebeple okula kaydı yapılmamış okuma yazma bilmeyen çocukların kayıtları birinci sınıfa yapılır. "]
[167,"Çocuğunuz 167 aylık olduğundan Mecburi ilköğretim çağında olup herhangi bir sebeple okula kaydı yapılmamış okuma yazma bilmeyen çocukların kayıtları birinci sınıfa yapılır. "]
[168,"Çocuğunuz 168 aylık olduğundan Mecburi ilköğretim çağında olup herhangi bir sebeple okula kaydı yapılmamış okuma yazma bilmeyen çocukların kayıtları birinci sınıfa yapılır. "]
[169,"Çocuğunuz 169 aylık olduğundan Mecburi ilköğretim çağında olup herhangi bir sebeple okula kaydı yapılmamış okuma yazma bilmeyen çocukların kayıtları birinci sınıfa yapılır. "]
[170,"Çocuğunuz 170 aylık olduğundan Mecburi ilköğretim çağında olup herhangi bir sebeple okula kaydı yapılmamış okuma yazma bilmeyen çocukların kayıtları birinci sınıfa yapılır. "]
[171,"Çocuğunuz 171 aylık olduğundan Mecburi ilköğretim çağında olup herhangi bir sebeple okula kaydı yapılmamış okuma yazma bilmeyen çocukların kayıtları birinci sınıfa yapılır. "]
[172,"Çocuğunuz 172 aylık olduğundan Mecburi ilköğretim çağında olup herhangi bir sebeple okula kaydı yapılmamış okuma yazma bilmeyen çocukların kayıtları birinci sınıfa yapılır. "]
[173,"Çocuğunuz 173 aylık olduğundan Mecburi ilköğretim çağında olup herhangi bir sebeple okula kaydı yapılmamış okuma yazma bilmeyen çocukların kayıtları birinci sınıfa yapılır. "]
[174,"Çocuğunuz 174 aylık olduğundan Mecburi ilköğretim çağında olup herhangi bir sebeple okula kaydı yapılmamış okuma yazma bilmeyen çocukların kayıtları birinci sınıfa yapılır. "]
[175,"Çocuğunuz 175 aylık olduğundan Mecburi ilköğretim çağında olup herhangi bir sebeple okula kaydı yapılmamış okuma yazma bilmeyen çocukların kayıtları birinci sınıfa yapılır. "]
[176,"Çocuğunuz 176 aylık olduğundan Mecburi ilköğretim çağında olup herhangi bir sebeple okula kaydı yapılmamış okuma yazma bilmeyen çocukların kayıtları birinci sınıfa yapılır. "]
[177,"Çocuğunuz 177 aylık olduğundan Mecburi ilköğretim çağında olup herhangi bir sebeple okula kaydı yapılmamış okuma yazma bilmeyen çocukların kayıtları birinci sınıfa yapılır. "]
[178,"Çocuğunuz 178 aylık olduğundan Mecburi ilköğretim çağında olup herhangi bir sebeple okula kaydı yapılmamış okuma yazma bilmeyen çocukların kayıtları birinci sınıfa yapılır. "]
[179,"Çocuğunuz 179 aylık olduğundan Mecburi ilköğretim çağında olup herhangi bir sebeple okula kaydı yapılmamış okuma yazma bilmeyen çocukların kayıtları birinci sınıfa yapılır. "]
[180,"Çocuğunuz 180 aylık olduğundan Mecburi ilköğretim çağında olup herhangi bir sebeple okula kaydı yapılmamış okuma yazma bilmeyen çocukların kayıtları birinci sınıfa yapılır. "]
[181,"Çocuğunuz 181 aylık olduğundan Mecburi ilköğretim çağında olup herhangi bir sebeple okula kaydı yapılmamış okuma yazma bilmeyen çocukların kayıtları birinci sınıfa yapılır. "]
[182,"Çocuğunuz 182 aylık olduğundan Mecburi ilköğretim çağında olup herhangi bir sebeple okula kaydı yapılmamış okuma yazma bilmeyen çocukların kayıtları birinci sınıfa yapılır. "]
[183,"Çocuğunuz 183 aylık olduğundan Mecburi ilköğretim çağında olup herhangi bir sebeple okula kaydı yapılmamış okuma yazma bilmeyen çocukların kayıtları birinci sınıfa yapılır. "]
[184,"Çocuğunuz 184 aylık olduğundan Mecburi ilköğretim çağında olup herhangi bir sebeple okula kaydı yapılmamış okuma yazma bilmeyen çocukların kayıtları birinci sınıfa yapılır. "]
[185,"Çocuğunuz 185 aylık olduğundan Mecburi ilköğretim çağında olup herhangi bir sebeple okula kaydı yapılmamış okuma yazma bilmeyen çocukların kayıtları birinci sınıfa yapılır. "]
[186,"Çocuğunuz 186 aylık olduğundan Mecburi ilköğretim çağında olup herhangi bir sebeple okula kaydı yapılmamış okuma yazma bilmeyen çocukların kayıtları birinci sınıfa yapılır. "]
[187,"Çocuğunuz 187 aylık olduğundan Mecburi ilköğretim çağında olup herhangi bir sebeple okula kaydı yapılmamış okuma yazma bilmeyen çocukların kayıtları birinci sınıfa yapılır. "]
[188,"Çocuğunuz 188 aylık olduğundan Mecburi ilköğretim çağında olup herhangi bir sebeple okula kaydı yapılmamış okuma yazma bilmeyen çocukların kayıtları birinci sınıfa yapılır. "]
[189,"Çocuğunuz 189 aylık olduğundan Mecburi ilköğretim çağında olup herhangi bir sebeple okula kaydı yapılmamış okuma yazma bilmeyen çocukların kayıtları birinci sınıfa yapılır. "]
[190,"Çocuğunuz 190 aylık olduğundan Mecburi ilköğretim çağında olup herhangi bir sebeple okula kaydı yapılmamış okuma yazma bilmeyen çocukların kayıtları birinci sınıfa yapılır. "]
[191,"Çocuğunuz 191 aylık olduğundan Mecburi ilköğretim çağında olup herhangi bir sebeple okula kaydı yapılmamış okuma yazma bilmeyen çocukların kayıtları birinci sınıfa yapılır. "]
[192,"Çocuğunuz 192 aylık olduğundan Mecburi ilköğretim çağında olup herhangi bir sebeple okula kaydı yapılmamış okuma yazma bilmeyen çocukların kayıtları birinci sınıfa yapılır. "]
[193,"Çocuğunuz 193 aylık olduğundan Mecburi ilköğretim çağında olup herhangi bir sebeple okula kaydı yapılmamış okuma yazma bilmeyen çocukların kayıtları birinci sınıfa yapılır. "]
[194,"Çocuğunuz 194 aylık olduğundan Mecburi ilköğretim çağında olup herhangi bir sebeple okula kaydı yapılmamış okuma yazma bilmeyen çocukların kayıtları birinci sınıfa yapılır. "]
[195,"Çocuğunuz 195 aylık olduğundan Mecburi ilköğretim çağında olup herhangi bir sebeple okula kaydı yapılmamış okuma yazma bilmeyen çocukların kayıtları birinci sınıfa yapılır. "]
[196,"Çocuğunuz 196 aylık olduğundan Mecburi ilköğretim çağında olup herhangi bir sebeple okula kaydı yapılmamış okuma yazma bilmeyen çocukların kayıtları birinci sınıfa yapılır. "]
[197,"Çocuğunuz 197 aylık olduğundan Mecburi ilköğretim çağında olup herhangi bir sebeple okula kaydı yapılmamış okuma yazma bilmeyen çocukların kayıtları birinci sınıfa yapılır. "]
[198,"Çocuğunuz 198 aylık olduğundan Mecburi ilköğretim çağında olup herhangi bir sebeple okula kaydı yapılmamış okuma yazma bilmeyen çocukların kayıtları birinci sınıfa yapılır. "]
[199,"Çocuğunuz 199 aylık olduğundan Mecburi ilköğretim çağında olup herhangi bir sebeple okula kaydı yapılmamış okuma yazma bilmeyen çocukların kayıtları birinci sınıfa yapılır. "]
[200,"Çocuğunuz 200 aylık olduğundan Mecburi ilköğretim çağında olup herhangi bir sebeple okula kaydı yapılmamış okuma yazma bilmeyen çocukların kayıtları birinci sınıfa yapılır. "]
[201,"Çocuğunuz 201 aylık olduğundan Mecburi ilköğretim çağında olup herhangi bir sebeple okula kaydı yapılmamış okuma yazma bilmeyen çocukların kayıtları birinci sınıfa yapılır. "]
[202,"Çocuğunuz 202 aylık olduğundan Mecburi ilköğretim çağında olup herhangi bir sebeple okula kaydı yapılmamış okuma yazma bilmeyen çocukların kayıtları birinci sınıfa yapılır. "]
[203,"Çocuğunuz 203 aylık olduğundan Mecburi ilköğretim çağında olup herhangi bir sebeple okula kaydı yapılmamış okuma yazma bilmeyen çocukların kayıtları birinci sınıfa yapılır. "]
[204,"Çocuğunuz 204 aylık olduğundan Mecburi ilköğretim çağında olup herhangi bir sebeple okula kaydı yapılmamış okuma yazma bilmeyen çocukların kayıtları birinci sınıfa yapılır. "]
[205,"Çocuğunuz 205 aylık olduğundan Mecburi ilköğretim çağında olup herhangi bir sebeple okula kaydı yapılmamış okuma yazma bilmeyen çocukların kayıtları birinci sınıfa yapılır. "]
[206,"Çocuğunuz 206 aylık olduğundan Mecburi ilköğretim çağında olup herhangi bir sebeple okula kaydı yapılmamış okuma yazma bilmeyen çocukların kayıtları birinci sınıfa yapılır. "]
[207,"Çocuğunuz 207 aylık olduğundan Mecburi ilköğretim çağında olup herhangi bir sebeple okula kaydı yapılmamış okuma yazma bilmeyen çocukların kayıtları birinci sınıfa yapılır. "]
[208,{"$f":"CONCATENATE(\"Çocuğunuz \",A242,\" aylık olduğundan Mecburi ilköğretim çağında olup herhangi bir sebeple okula kaydı yapılmamış okuma yazma bilmeyen çocukların kayıtları birinci sınıfa yapılır. \")","v":"Çocuğunuz 208 aylık olduğundan Mecburi ilköğretim çağında olup herhangi bir sebeple okula kaydı yapılmamış okuma yazma bilmeyen çocukların kayıtları birinci sınıfa yapılır. "}]
[209,"Çocuğunuz 209 aylık olduğundan Mecburi ilköğretim çağında olup herhangi bir sebeple okula kaydı yapılmamış okuma yazma bilmeyen çocukların kayıtları birinci sınıfa yapılır. "]
[210,"Çocuğunuz 210 aylık olduğundan Mecburi ilköğretim çağında olup herhangi bir sebeple okula kaydı yapılmamış okuma yazma bilmeyen çocukların kayıtları birinci sınıfa yapılır. "]
[211,"Çocuğunuz 211 aylık olduğundan Mecburi ilköğretim çağında olup herhangi bir sebeple okula kaydı yapılmamış okuma yazma bilmeyen çocukların kayıtları birinci sınıfa yapılır. "]
[212,"Çocuğunuz 212 aylık olduğundan Mecburi ilköğretim çağında olup herhangi bir sebeple okula kaydı yapılmamış okuma yazma bilmeyen çocukların kayıtları birinci sınıfa yapılır. "]
[213,"Çocuğunuz 213 aylık olduğundan Mecburi ilköğretim çağında olup herhangi bir sebeple okula kaydı yapılmamış okuma yazma bilmeyen çocukların kayıtları birinci sınıfa yapılır. "]
[214,"Çocuğunuz 214 aylık olduğundan Mecburi ilköğretim çağında olup herhangi bir sebeple okula kaydı yapılmamış okuma yazma bilmeyen çocukların kayıtları birinci sınıfa yapılır. "]
[215,"Çocuğunuz 215 aylık olduğundan Mecburi ilköğretim çağında olup herhangi bir sebeple okula kaydı yapılmamış okuma yazma bilmeyen çocukların kayıtları birinci sınıfa yapılır. "]
[216,"Çocuğunuz 216 aylık olduğundan Mecburi ilköğretim çağında olup herhangi bir sebeple okula kaydı yapılmamış okuma yazma bilmeyen çocukların kayıtları birinci sınıfa yapılır. "]
[217,"Çocuğunuz 217 aylık olduğundan Mecburi ilköğretim çağında olup herhangi bir sebeple okula kaydı yapılmamış okuma yazma bilmeyen çocukların kayıtları birinci sınıfa yapılır. "]
[218,"Çocuğunuz 218 aylık olduğundan Mecburi ilköğretim çağında olup herhangi bir sebeple okula kaydı yapılmamış okuma yazma bilmeyen çocukların kayıtları birinci sınıfa yapılır. "]
[219,"Çocuğunuz 219 aylık olduğundan Mecburi ilköğretim çağında olup herhangi bir sebeple okula kaydı yapılmamış okuma yazma bilmeyen çocukların kayıtları birinci sınıfa yapılır. "]
[220,"Çocuğunuz 220 aylık olduğundan Mecburi ilköğretim çağında olup herhangi bir sebeple okula kaydı yapılmamış okuma yazma bilmeyen çocukların kayıtları birinci sınıfa yapılır. "]
[221,"Çocuğunuz 221 aylık olduğundan Mecburi ilköğretim çağında olup herhangi bir sebeple okula kaydı yapılmamış okuma yazma bilmeyen çocukların kayıtları birinci sınıfa yapılır. "]
[222,"Çocuğunuz 222 aylık olduğundan Mecburi ilköğretim çağında olup herhangi bir sebeple okula kaydı yapılmamış okuma yazma bilmeyen çocukların kayıtları birinci sınıfa yapılır. "]
[223,"Çocuğunuz 223 aylık olduğundan Mecburi ilköğretim çağında olup herhangi bir sebeple okula kaydı yapılmamış okuma yazma bilmeyen çocukların kayıtları birinci sınıfa yapılır. "]
[224,"Çocuğunuz 224 aylık olduğundan Mecburi ilköğretim çağında olup herhangi bir sebeple okula kaydı yapılmamış okuma yazma bilmeyen çocukların kayıtları birinci sınıfa yapılır. "]
[225,"Çocuğunuz 225 aylık olduğundan Mecburi ilköğretim çağında olup herhangi bir sebeple okula kaydı yapılmamış okuma yazma bilmeyen çocukların kayıtları birinci sınıfa yapılır. "]
[226,"Çocuğunuz 226 aylık olduğundan Mecburi ilköğretim çağında olup herhangi bir sebeple okula kaydı yapılmamış okuma yazma bilmeyen çocukların kayıtları birinci sınıfa yapılır. "]
[227,"Çocuğunuz 227 aylık olduğundan Mecburi ilköğretim çağında olup herhangi bir sebeple okula kaydı yapılmamış okuma yazma bilmeyen çocukların kayıtları birinci sınıfa yapılır. "]
[228,"Çocuğunuz 228 aylık olduğundan Mecburi ilköğretim çağında olup herhangi bir sebeple okula kaydı yapılmamış okuma yazma bilmeyen çocukların kayıtları birinci sınıfa yapılır. "]
[229,"Çocuğunuz 229 aylık olduğundan Mecburi ilköğretim çağında olup herhangi bir sebeple okula kaydı yapılmamış okuma yazma bilmeyen çocukların kayıtları birinci sınıfa yapılır. "]
[230,"Çocuğunuz 230 aylık olduğundan Mecburi ilköğretim çağında olup herhangi bir sebeple okula kaydı yapılmamış okuma yazma bilmeyen çocukların kayıtları birinci sınıfa yapılır. "]
[231,"Çocuğunuz 231 aylık olduğundan Mecburi ilköğretim çağında olup herhangi bir sebeple okula kaydı yapılmamış okuma yazma bilmeyen çocukların kayıtları birinci sınıfa yapılır. "]
[232,"Çocuğunuz 232 aylık olduğundan Mecburi ilköğretim çağında olup herhangi bir sebeple okula kaydı yapılmamış okuma yazma bilmeyen çocukların kayıtları birinci sınıfa yapılır. "]
[233,"Çocuğunuz 233 aylık olduğundan Mecburi ilköğretim çağında olup herhangi bir sebeple okula kaydı yapılmamış okuma yazma bilmeyen çocukların kayıtları birinci sınıfa yapılır. "]
[234,"Çocuğunuz 234 aylık olduğundan Mecburi ilköğretim çağında olup herhangi bir sebeple okula kaydı yapılmamış okuma yazma bilmeyen çocukların kayıtları birinci sınıfa yapılır. "]
[235,"Çocuğunuz 235 aylık olduğundan Mecburi ilköğretim çağında olup herhangi bir sebeple okula kaydı yapılmamış okuma yazma bilmeyen çocukların kayıtları birinci sınıfa yapılır. "]
[236,"Çocuğunuz 236 aylık olduğundan Mecburi ilköğretim çağında olup herhangi bir sebeple okula kaydı yapılmamış okuma yazma bilmeyen çocukların kayıtları birinci sınıfa yapılır. "]
[237,"Çocuğunuz 237 aylık olduğundan Mecburi ilköğretim çağında olup herhangi bir sebeple okula kaydı yapılmamış okuma yazma bilmeyen çocukların kayıtları birinci sınıfa yapılır. "]
[238,"Çocuğunuz 238 aylık olduğundan Mecburi ilköğretim çağında olup herhangi bir sebeple okula kaydı yapılmamış okuma yazma bilmeyen çocukların kayıtları birinci sınıfa yapılır. "]
[239,"Çocuğunuz 239 aylık olduğundan Mecburi ilköğretim çağında olup herhangi bir sebeple okula kaydı yapılmamış okuma yazma bilmeyen çocukların kayıtları birinci sınıfa yapılır. "]
[240,"Çocuğunuz 240 aylık olduğundan Mecburi ilköğretim çağında olup herhangi bir sebeple okula kaydı yapılmamış okuma yazma bilmeyen çocukların kayıtları birinci sınıfa yapılır. "]
[241,"Çocuğunuz 241 aylık olduğundan Mecburi ilköğretim çağında olup herhangi bir sebeple okula kaydı yapılmamış okuma yazma bilmeyen çocukların kayıtları birinci sınıfa yapılır. "]
[242,"Çocuğunuz 242 aylık olduğundan Mecburi ilköğretim çağında olup herhangi bir sebeple okula kaydı yapılmamış okuma yazma bilmeyen çocukların kayıtları birinci sınıfa yapılır. "]
[243,"Çocuğunuz 243 aylık olduğundan Mecburi ilköğretim çağında olup herhangi bir sebeple okula kaydı yapılmamış okuma yazma bilmeyen çocukların kayıtları birinci sınıfa yapılır. "]
[244,"Çocuğunuz 244 aylık olduğundan Mecburi ilköğretim çağında olup herhangi bir sebeple okula kaydı yapılmamış okuma yazma bilmeyen çocukların kayıtları birinci sınıfa yapılır. "]
[245,"Çocuğunuz 245 aylık olduğundan Mecburi ilköğretim çağında olup herhangi bir sebeple okula kaydı yapılmamış okuma yazma bilmeyen çocukların kayıtları birinci sınıfa yapılır. "]
[246,"Çocuğunuz 246 aylık olduğundan Mecburi ilköğretim çağında olup herhangi bir sebeple okula kaydı yapılmamış okuma yazma bilmeyen çocukların kayıtları birinci sınıfa yapılır. "]
[247,"Çocuğunuz 247 aylık olduğundan Mecburi ilköğretim çağında olup herhangi bir sebeple okula kaydı yapılmamış okuma yazma bilmeyen çocukların kayıtları birinci sınıfa yapılır. "]
[248,"Çocuğunuz 248 aylık olduğundan Mecburi ilköğretim çağında olup herhangi bir sebeple okula kaydı yapılmamış okuma yazma bilmeyen çocukların kayıtları birinci sınıfa yapılır. "]
[249,"Çocuğunuz 249 aylık olduğundan Mecburi ilköğretim çağında olup herhangi bir sebeple okula kaydı yapılmamış okuma yazma bilmeyen çocukların kayıtları birinci sınıfa yapılır. "]
[250,"Çocuğunuz 250 aylık olduğundan Mecburi ilköğretim çağında olup herhangi bir sebeple okula kaydı yapılmamış okuma yazma bilmeyen çocukların kayıtları birinci sınıfa yapılır. "]
[251,"Çocuğunuz 251 aylık olduğundan Mecburi ilköğretim çağında olup herhangi bir sebeple okula kaydı yapılmamış okuma yazma bilmeyen çocukların kayıtları birinci sınıfa yapılır. "]
[252,"Çocuğunuz 252 aylık olduğundan Mecburi ilköğretim çağında olup herhangi bir sebeple okula kaydı yapılmamış okuma yazma bilmeyen çocukların kayıtları birinci sınıfa yapılır. "]
[253,"Çocuğunuz 253 aylık olduğundan Mecburi ilköğretim çağında olup herhangi bir sebeple okula kaydı yapılmamış okuma yazma bilmeyen çocukların kayıtları birinci sınıfa yapılır. "]
[254,"Çocuğunuz 254 aylık olduğundan Mecburi ilköğretim çağında olup herhangi bir sebeple okula kaydı yapılmamış okuma yazma bilmeyen çocukların kayıtları birinci sınıfa yapılır. "]
[255,"Çocuğunuz 255 aylık olduğundan Mecburi ilköğretim çağında olup herhangi bir sebeple okula kaydı yapılmamış okuma yazma bilmeyen çocukların kayıtları birinci sınıfa yapılır. "]
[256,"Çocuğunuz 256 aylık olduğundan Mecburi ilköğretim çağında olup herhangi bir sebeple okula kaydı yapılmamış okuma yazma bilmeyen çocukların kayıtları birinci sınıfa yapılır. "]
[257,"Çocuğunuz 257 aylık olduğundan Mecburi ilköğretim çağında olup herhangi bir sebeple okula kaydı yapılmamış okuma yazma bilmeyen çocukların kayıtları birinci sınıfa yapılır. "]
[258,"Çocuğunuz 258 aylık olduğundan Mecburi ilköğretim çağında olup herhangi bir sebeple okula kaydı yapılmamış okuma yazma bilmeyen çocukların kayıtları birinci sınıfa yapılır. "]
[259,"Çocuğunuz 259 aylık olduğundan Mecburi ilköğretim çağında olup herhangi bir sebeple okula kaydı yapılmamış okuma yazma bilmeyen çocukların kayıtları birinci sınıfa yapılır. "]
[260,"Çocuğunuz 260 aylık olduğundan Mecburi ilköğretim çağında olup herhangi bir sebeple okula kaydı yapılmamış okuma yazma bilmeyen çocukların kayıtları birinci sınıfa yapılır. "]
[261,"Çocuğunuz 261 aylık olduğundan Mecburi ilköğretim çağında olup herhangi bir sebeple okula kaydı yapılmamış okuma yazma bilmeyen çocukların kayıtları birinci sınıfa yapılır. "]
[262,"Çocuğunuz 262 aylık olduğundan Mecburi ilköğretim çağında olup herhangi bir sebeple okula kaydı yapılmamış okuma yazma bilmeyen çocukların kayıtları birinci sınıfa yapılır. "]
[263,"Çocuğunuz 263 aylık olduğundan Mecburi ilköğretim çağında olup herhangi bir sebeple okula kaydı yapılmamış okuma yazma bilmeyen çocukların kayıtları birinci sınıfa yapılır. "]
[264,"Çocuğunuz 264 aylık olduğundan Mecburi ilköğretim çağında olup herhangi bir sebeple okula kaydı yapılmamış okuma yazma bilmeyen çocukların kayıtları birinci sınıfa yapılır. "]
[265,"Çocuğunuz 265 aylık olduğundan Mecburi ilköğretim çağında olup herhangi bir sebeple okula kaydı yapılmamış okuma yazma bilmeyen çocukların kayıtları birinci sınıfa yapılır. "]
[266,"Çocuğunuz 266 aylık olduğundan Mecburi ilköğretim çağında olup herhangi bir sebeple okula kaydı yapılmamış okuma yazma bilmeyen çocukların kayıtları birinci sınıfa yapılır. "]
[267,"Çocuğunuz 267 aylık olduğundan Mecburi ilköğretim çağında olup herhangi bir sebeple okula kaydı yapılmamış okuma yazma bilmeyen çocukların kayıtları birinci sınıfa yapılır. "]
[268,"Çocuğunuz 268 aylık olduğundan Mecburi ilköğretim çağında olup herhangi bir sebeple okula kaydı yapılmamış okuma yazma bilmeyen çocukların kayıtları birinci sınıfa yapılır. "]
[269,"Çocuğunuz 269 aylık olduğundan Mecburi ilköğretim çağında olup herhangi bir sebeple okula kaydı yapılmamış okuma yazma bilmeyen çocukların kayıtları birinci sınıfa yapılır. "]
[270,"Çocuğunuz 270 aylık olduğundan Mecburi ilköğretim çağında olup herhangi bir sebeple okula kaydı yapılmamış okuma yazma bilmeyen çocukların kayıtları birinci sınıfa yapılır. "]
[271,"Çocuğunuz 271 aylık olduğundan Mecburi ilköğretim çağında olup herhangi bir sebeple okula kaydı yapılmamış okuma yazma bilmeyen çocukların kayıtları birinci sınıfa yapılır. "]
[272,{"$f":"CONCATENATE(\"Çocuğunuz \",A306,\" aylık olduğundan Mecburi ilköğretim çağında olup herhangi bir sebeple okula kaydı yapılmamış okuma yazma bilmeyen çocukların kayıtları birinci sınıfa yapılır. \")","v":"Çocuğunuz 272 aylık olduğundan Mecburi ilköğretim çağında olup herhangi bir sebeple okula kaydı yapılmamış okuma yazma bilmeyen çocukların kayıtları birinci sınıfa yapılır. "}]

{"sheet":"Sayfa1","index":1,"n_rows":24,"n_cols":15,"rows_kept":24,"cut":false,"hidden":false,"merged":[[23,13,23,16],[16,0,16,5],[22,0,22,5],[6,6,6,8],[10,10,10,11],[12,8,21,11],[10,6,10,8],[12,6,17,7],[18,6,21,7],[1,6,1,8],[2,6,2,8],[3,6,4,8],[1,9,1,11],[22,13,22,16]]}
[]
[null,null,null,null,null,null,"LÜTFEN EĞİTİM ÖĞRETİM YILINI SEÇİNİZ",null,null,"2019-2020",null,null,null,null,{"$f":"CONCATENATE(\"30.09.\"&MID(J2,1,4))","v":"30.09.2019"}]
[]
[null,null,null,null,null,null,"LÜTFEN ÇOCUĞUNUZUN DOĞUM TARİHİNİ SEÇİNİZ",null,null,"GÜN","AY","YIL",null,null,{"$f":"DATE(L5,K5,J5)","v":"2014-01-31"}]
[null,null,null,null,null,null,null,null,null,31,1,2014]
[]
[null,null,null,null,null,null,null,null,null,null,null,null,null,null,{"$f":"DAYS360(O4,O2,0)","v":2040}]
[]
[]
[]
[null,null,null,null,null,null,"ÇOCUĞUNUZ",null,null,{"$f":"(ROUNDDOWN(O7/30,0))","v":68},"AYLIKTIR."]
[]
[null,null,null,null,null,null,"KAYIT DURUMU",null,{"$f":"IF(J11<=0,\"Lütfen geçerli bir tarih aralığı giriniz.\",VLOOKUP($J$11,Sayfa2!$A$35:$B$306,2))","v":"Çocuğunuz 68 aylık olduğundan Anaokulu, Ana Sınıfı ve Uygulama Sınıfına kaydı yapılır. Anaokulu, Ana Sınıfı ve Uygulama Sınıflarına, kayıtların yapıldığı eylül ayı sonu itibariyle 57-68 aylık çocukların kaydı yapılır."}]
[]
[]
[]
["Okulumuz web sayfasına erişmek için logoyu tıklayınız."]
[]
[null,null,null,null,null,null,{"$f":"IF($J$11>=69,\"J\",IF(AND($J$11>66,$J$11<69),\"K\",\"L\"))","v":"K"}]
[]
[]
[]
["İlgili yönetmelik maddesi değişikliği için Tıklayınız.",null,null,null,null,null,null,null,null,null,null,null,null,"Görüş ve önerileriniz için;"]
[null,null,null,null,null,null,null,null,null,null,null,null,null,"ihsanhmn@gmail.com"]